[Event "World Junior U20 Open 2018"]
[Site "Gebze"]
[Date "2018.09.14"]
[Round "10.74"]
[White "Kara, Yanki"]
[Black "Ozgur, Tibet Kagan"]
[Result "1-0"]
[ECO "B20"]
[WhiteElo "2262"]
[BlackElo "2056"]
[Annotator "NA"]
[PlyCount "59"]
[EventDate "2018.09.05"]
[EventType "swiss"]
[EventCountry "TUR"]
[SourceTitle "playchess.com"]
[Source "ChessBase"]
[SourceQuality "1"]
[TimeControl "40/5400+30:1800+30"]

1. e4 c5 2. b3 g6 {B20: Sicilian: Unusual White 2nd moves} 3. Bb2 Nf6 4. Qf3 (4. e5 Nd5 5. Qf3 Nb4 6. Na3 Bg7 7. e6 f6 8. c3 N4c6 9. Qe3 dxe6 10. Qxc5 {½-½ (41) Morozevich,A (2665)-Andreikin,D (2712) Moscow 2018}) 4... d6 5. Bb5+ Nbd7 6. Bxf6 exf6 7. Nc3 $146 ({Predecessor:} 7. Qd3 a6 8. Bxd7+ Bxd7 9. Nc3 Be6 10. Nge2 {1-0 (34) Chigaev,M (2521)-Ushenina,A (2426) St Petersburg 2015}) 7... a6 8. Bxd7+ Bxd7 9. Nge2 Bg7 10. Qd3 {[%emt 0:22:00]} Be6 {[%emt 0:20:00]} 11. Ng3 {[%emt 0:00:30]} O-O {[%emt 0:02:30]} 12. f4 {[%emt 0:06:30]} b5 {[%emt 0:18:30]} 13. f5 {[%emt 0:01:30]} Bc8 {[%emt 0:00:30]} 14. O-O {[%emt 0:01:30]} b4 {[%emt 0:05:30]} 15. Nd5 {[%emt 0:02:30]} a5 {[%emt 0:00:00]} 16. Ne2 {[%emt 0:11:30]} Re8 {[%emt 0:10:00]} 17. Qf3 {[%emt 0:04:30]} gxf5 {[%emt 0:09:30]} 18. exf5 {[%emt 0:01:30]} Bxf5 {[%emt 0:04:30]} 19. Qxf5 {[%emt 0:05:30]} Rxe2 {[%emt 0:00:00]} 20. Qd3 {[%emt 0:16:30]} Re5 $16 {[%emt 0:03:00]} 21. Rf3 {[%emt 0:00:30]} f5 {[%emt 0:14:51]} 22. Raf1 {[%emt 0:00:30]} Qh4 {[%emt 0:02:25]} 23. Rf4 {[%emt 0:05:30]} Qg5 {[%emt 0:06:02]} 24. Ne3 {[%emt 0:02:13]} Rae8 {[%emt 0:02:19]} 25. Qb5 {[%emt 0:07:00]} Qd8 {[%emt 0:02:21]} 26. Nxf5 {[%emt 0:00:59]} Re1 {[%emt 0:00:28]} 27. Rg4 {[%emt 0:00:44]} Qf6 {[%emt 0:00:32]} 28. Rxg7+ {[%emt 0:02:27]} Kh8 {[%emt 0:00:28]} 29. Rg3 {[%emt 0:02:05]} Qxf5 {[%emt 0:00:56]} 30. Qxe8+ {[%emt 0:00:03]} 1-0

[Event "World Junior U20 Open 2018"]
[Site "Gebze"]
[Date "2018.09.14"]
[Round "10.75"]
[White "Caglar, Ahmet Ata"]
[Black "Kwon, Sehyun"]
[Result "1-0"]
[ECO "E04"]
[WhiteElo "2071"]
[BlackElo "2129"]
[Annotator "NA"]
[PlyCount "35"]
[EventDate "2018.09.05"]
[EventType "swiss"]
[EventCountry "TUR"]
[SourceTitle "playchess.com"]
[Source "ChessBase"]
[SourceQuality "1"]
[TimeControl "40/5400+30:1800+30"]

1. d4 {[%emt 0:00:30]} d5 {[%emt 0:00:30]} 2. c4 {[%emt 0:00:30]} e6 {[%emt 0:00:30]} 3. Nf3 {[%emt 0:00:30]} Nf6 {[%emt 0:00:30]} 4. g3 {[%emt 0:00:30]} Bb4+ {[%emt 0:00:00]} 5. Nbd2 {[%emt 0:00:00]} dxc4 {[%emt 0:00:00]} 6. Bg2 {[%emt 0:00:00]} b5 {[%emt 0:02:30]} 7. a4 {[%emt 0:02:00]} c6 $11 {[%emt 0:00:30] LiveBook: 10 Games} 8. O-O Bb7 9. axb5 cxb5 10. Nxc4 Nbd7 {[%emt 0:26:00]} 11. Bd2 {[%emt 0:16:30]} Qe7 {[%emt 0:04:30]} 12. Na5 {[%emt 0:12:30]} Bd5 {[%emt 0:01:30]} 13. Bxb4 {[%emt 0:14:30]} Qxb4 {[%emt 0:00:30]} 14. Qd2 {[%emt 0:00:00]} Qd6 {[%emt 0:02:30]} 15. Rfc1 {[%emt 0:03:00]} O-O {[%emt 0:01:30]} 16. Qc3 {[%emt 0:02:30]} Nb6 {[%emt 0:03:30]} 17. Qc5 {[%emt 0:01:30]} Nc4 {[%emt 0:12:30]} 18. Rxc4 {[%emt 0:01:30]} 1-0

[Event "World Junior U20 Open 2018"]
[Site "Gebze"]
[Date "2018.09.14"]
[Round "10.76"]
[White "Yaran, Siar"]
[Black "Dionizio, Andre Filipe Nascim"]
[Result "1-0"]
[ECO "D00"]
[WhiteElo "2271"]
[BlackElo "2010"]
[Annotator "NA"]
[PlyCount "42"]
[EventDate "2018.09.05"]
[EventType "swiss"]
[EventCountry "TUR"]
[SourceTitle "playchess.com"]
[Source "ChessBase"]
[SourceQuality "1"]
[TimeControl "40/5400+30:1800+30"]

1. d4 d5 2. e4 dxe4 3. Nc3 Nf6 4. f3 exf3 5. Nxf3 Bg4 6. Bd3 e6 7. O-O Be7 8. Qe1 O-O 9. Qh4 Bf5 10. Bxf5 exf5 11. Bg5 {[%emt 0:06:30]} h6 {[%emt 0:43:30]} 12. Rae1 {[%emt 0:01:30]} hxg5 {[%emt 0:09:30]} 13. Nxg5 {[%emt 0:00:30]} g6 {[%emt 0:00:30]} 14. Rxe7 {[%emt 0:02:30]} Qxe7 {[%emt 0:13:30]} 15. Nd5 {[%emt 0:00:00]} Qd6 {[%emt 0:09:30]} 16. Nxf6+ {[%emt 0:03:00]} Kg7 {[%emt 0:00:30]} 17. Qh7+ {[%emt 0:01:30]} Kxf6 {[%emt 0:00:30]} 18. Ne4+ {[%emt 0:00:00]} Ke6 {[%emt 0:00:00]} 19. Nxd6 {[%emt 0:01:00]} Kxd6 {[%emt 0:00:00]} 20. Qh4 {[%emt 0:00:00]} f6 {[%emt 0:05:21]} 21. Qg3+ {[%emt 0:00:00]} Kd5 {[%emt 0:01:19]} 1-0

[Event "World Junior U20 Open 2018"]
[Site "Gebze"]
[Date "2018.09.14"]
[Round "10.77"]
[White "Zrikem, Nassim"]
[Black "De Block, Yordi"]
[Result "0-1"]
[ECO "B13"]
[WhiteElo "2066"]
[BlackElo "2118"]
[Annotator "NA"]
[PlyCount "80"]
[EventDate "2018.09.05"]
[EventType "swiss"]
[EventCountry "TUR"]
[SourceTitle "playchess.com"]
[Source "ChessBase"]
[SourceQuality "1"]
[TimeControl "40/5400+30:1800+30"]

1. d4 Nf6 2. Nf3 d5 3. e3 c5 4. c3 Nc6 5. Bd3 Bg4 6. Nbd2 e6 7. Qa4 cxd4 8. exd4 Bd6 9. Ne5 Qc7 10. Nxg4 Nxg4 11. h3 Nf6 12. Nf3 O-O 13. O-O Bf4 {[%emt 0:08:30]} 14. Be3 {[%emt 0:34:00]} Bxe3 {[%emt 0:00:30]} 15. fxe3 {[%emt 0:03:30]} Ne4 {[%emt 0:08:30]} 16. Bxe4 {[%emt 0:04:30]} dxe4 {[%emt 0:00:00]} 17. Nd2 {[%emt 0:00:30]} f5 {[%emt 0:01:00]} 18. Qb3 {[%emt 0:07:30]} Rf6 {[%emt 0:02:30]} 19. Nxe4 {[%emt 0:09:30]} fxe4 {[%emt 0:00:30]} 20. Rxf6 {[%emt 0:00:30]} gxf6 {[%emt 0:00:30]} 21. Qxe6+ {[%emt 0:00:30]} Qf7 {[%emt 0:00:30]} 22. Qxe4 {[%emt 0:00:30]} Re8 {[%emt 0:00:30]} 23. Qf3 {[%emt 0:03:30]} Qg6 {[%emt 0:05:30]} 24. Re1 {[%emt 0:05:30]} Re4 {[%emt 0:00:30]} 25. Rf1 {[%emt 0:02:30]} Kg7 {[%emt 0:00:30]} 26. Qe2 {[%emt 0:01:30]} Ne7 {[%emt 0:13:30]} 27. Rf3 {[%emt 0:04:30]} h5 {[%emt 0:08:30]} 28. Kf2 {[%emt 0:05:30]} h4 {[%emt 0:01:30]} 29. Qb5 {[%emt 0:03:28]} Re6 {[%emt 0:02:30]} 30. Qd7 {[%emt 0:06:49]} Qe4 {[%emt 0:01:30]} 31. Qb5 {[%emt 0:06:13]} Rb6 {[%emt 0:07:30]} 32. Qe2 {[%emt 0:01:08]} Qb1 {[%emt 0:00:30]} 33. b3 {[%emt 0:01:12]} Ra6 {[%emt 0:00:00]} 34. a4 {[%emt 0:00:20]} Qxb3 {[%emt 0:00:00]} 35. e4 {[%emt 0:02:02]} Rxa4 {[%emt 0:00:30]} 36. e5 {[%emt 0:01:31]} f5 {[%emt 0:04:30]} 37. Rd3 {[%emt 0:00:30]} Ra1 {[%emt 0:02:30]} 38. Qe3 {[%emt 0:00:57]} Qb1 {[%emt 0:02:30]} 39. Qg5+ {[%emt 0:01:12]} Ng6 {[%emt 0:00:00]} 40. d5 {[%emt 0:00:00]} Qg1+ {[%emt 0:00:00]} 0-1

[Event "World Junior U20 Open 2018"]
[Site "Gebze"]
[Date "2018.09.14"]
[Round "10.78"]
[White "Maltezeanu, Stefan"]
[Black "Kilic, Gokturk Kagan"]
[Result "1/2-1/2"]
[ECO "B41"]
[WhiteElo "2089"]
[BlackElo "1910"]
[Annotator "NA"]
[PlyCount "67"]
[EventDate "2018.09.05"]
[EventType "swiss"]
[EventCountry "TUR"]
[SourceTitle "playchess.com"]
[Source "ChessBase"]
[SourceQuality "1"]
[TimeControl "40/5400+30:1800+30"]

1. e4 c5 2. Nf3 e6 3. d4 cxd4 4. Nxd4 a6 5. c4 Nf6 6. Nc3 Bb4 7. Bd3 Nc6 8. Nc2 Bxc3+ 9. bxc3 O-O 10. O-O d5 11. cxd5 exd5 12. exd5 Nxd5 13. c4 Ndb4 14. Nxb4 Nxb4 15. Be4 {[%emt 0:04:30]} Qxd1 {[%emt 0:54:30]} 16. Rxd1 {[%emt 0:00:30]} Nc6 {[%emt 0:00:30]} 17. Rb1 {[%emt 0:09:30]} Be6 {[%emt 0:17:30]} 18. Rxb7 {[%emt 0:06:30]} Rad8 {[%emt 0:03:30]} 19. Re1 {[%emt 0:15:30]} Nd4 {[%emt 0:13:52]} 20. c5 {[%emt 0:25:30]} Rfe8 {[%emt 0:02:56]} 21. f3 {[%emt 0:14:30]} Bxa2 {[%emt 0:05:02]} 22. Be3 {[%emt 0:03:30]} Bd5 {[%emt 0:01:09]} 23. Bxd5 {[%emt 0:04:58]} Rxd5 {[%emt 0:00:06]} 24. Reb1 {[%emt 0:04:06]} h6 {[%emt 0:00:58]} 25. Rb8 {[%emt 0:03:59]} Rxb8 {[%emt 0:00:57]} 26. Rxb8+ {[%emt 0:00:30]} Kh7 {[%emt 0:00:00]} 27. Kf2 {[%emt 0:00:40]} Ne6 {[%emt 0:01:29]} 28. c6 {[%emt 0:00:45]} a5 {[%emt 0:01:00]} 29. Bb6 {[%emt 0:05:24]} Rd2+ {[%emt 0:00:27]} 30. Kg3 {[%emt 0:00:35]} Rc2 {[%emt 0:00:16]} 31. c7 {[%emt 0:02:06]} Nxc7 {[%emt 0:00:30]} 32. Rc8 {[%emt 0:00:30]} Rc6 {[%emt 0:00:00]} 33. Bxa5 {[%emt 0:00:48]} Rg6+ {[%emt 0:00:04]} 34. Kf2 {[%emt 0:00:00]} 1/2-1/2

[Event "World Junior U20 Open 2018"]
[Site "Gebze"]
[Date "2018.09.14"]
[Round "10.79"]
[White "Baylav, Can"]
[Black "Rajic, Ivan"]
[Result "1-0"]
[ECO "A57"]
[WhiteElo "2026"]
[BlackElo "2021"]
[Annotator "NA"]
[PlyCount "145"]
[EventDate "2018.09.05"]
[EventType "swiss"]
[EventCountry "TUR"]
[SourceTitle "playchess.com"]
[Source "ChessBase"]
[SourceQuality "1"]
[TimeControl "40/5400+30:1800+30"]

1. d4 {[%emt 0:00:30]} Nf6 {[%emt 0:00:30]} 2. c4 {[%emt 0:00:30]} c5 {[%emt 0:00:30]} 3. d5 {[%emt 0:00:00]} b5 {[%emt 0:00:30]} 4. Qc2 {[%emt 0:02:00]} bxc4 {[%emt 0:01:30]} 5. e4 {[%emt 0:01:30]} g6 {[%emt 0:00:30]} 6. Bxc4 {[%emt 0:00:00]} d6 {[%emt 0:01:30]} 7. Nf3 {[%emt 0:01:00]} Bg7 {[%emt 0:00:30]} 8. O-O {[%emt 0:01:30]} O-O {[%emt 0:00:00]} 9. Nc3 {[%emt 0:00:30]} Nbd7 {[%emt 0:02:00]} 10. h3 {[%emt 0:00:30]} Nb6 {[%emt 0:02:30] A57: Benko/Volga Gambit} 11. Be2 {[%emt 0:01:30]} Ne8 {[%emt 0:11:30]} 12. Bf4 {[%emt 0:01:30]} e5 $146 {[%emt 0:03:30]} ({Predecessor:} 12... Nc7 13. Rad1 f5 14. e5 Bb7 15. exd6 exd6 16. Nb5 Nxb5 17. Bxb5 h6 18. h4 {0-1 (65) Berczes,D (2492)-Rambaldi,F (2557) Dallas 2015}) 13. dxe6 {[%emt 0:02:30]} fxe6 {[%emt 0:00:30]} 14. Bg5 {[%emt 0:01:30]} Bf6 {[%emt 0:01:30]} 15. Bxf6 {[%emt 0:00:30]} Qxf6 {[%emt 0:00:30]} 16. e5 {[%emt 0:00:30]} dxe5 {[%emt 0:02:30]} ({Black should play} 16... Qe7 $14) 17. Ne4 {[%emt 0:06:30]} Qf5 {[%emt 0:01:30]} 18. Nh4 {[%emt 0:01:30]} Qf4 {[%emt 0:00:30]} 19. g3 {[%emt 0:00:30]} Qf7 {[%emt 0:02:30]} 20. Nxc5 {[%emt 0:04:30]} Nd6 {[%emt 0:02:30]} 21. Nf3 {[%emt 0:05:30]} e4 {[%emt 0:06:30]} 22. Ng5 {[%emt 0:01:30]} Qf5 {[%emt 0:09:30]} 23. Ngxe6 {[%emt 0:02:30]} Rf6 {[%emt 0:06:30]} 24. Nf4 {[%emt 0:02:30]} Qe5 {[%emt 0:01:30]} 25. Qc3 {[%emt 0:05:30]} Qe7 {[%emt 0:00:30]} 26. f3 {[%emt 0:04:30]} e3 {[%emt 0:20:30]} 27. Ne4 {[%emt 0:01:30]} Rxf4 {[%emt 0:01:30]} 28. gxf4 {[%emt 0:01:30]} Bxh3 {[%emt 0:01:46]} 29. Qf6 {[%emt 0:05:30]} Qxf6 {[%emt 0:03:12]} 30. Nxf6+ {[%emt 0:00:30]} Kg7 {[%emt 0:00:43]} 31. Rfd1 {[%emt 0:00:00]} Nf5 {[%emt 0:00:20]} 32. Ne4 {[%emt 0:01:00]} Ne7 {[%emt 0:00:32]} 33. Nc3 {[%emt 0:04:30]} Be6 {[%emt 0:00:49]} 34. Rd6 {[%emt 0:02:30]} Kf7 {[%emt 0:03:07]} 35. Rad1 {[%emt 0:00:30]} Rc8 {[%emt 0:00:20]} 36. Ba6 {[%emt 0:13:30]} Rc7 {[%emt 0:00:58]} 37. Nb5 {[%emt 0:04:30]} Rc5 {[%emt 0:04:53]} 38. b4 {[%emt 0:02:30]} Rc2 {[%emt 0:03:59]} 39. Rxe6 {[%emt 0:06:14]} Rxa2 {[%emt 0:01:04]} 40. Nc7 {[%emt 0:00:00]} Rc2 {[%emt 0:00:00]} 41. Rxe7+ {[%emt 0:10:16]} Kxe7 {[%emt 0:06:17]} 42. Nd5+ {[%emt 0:00:30]} Nxd5 {[%emt 0:00:30]} 43. Rxd5 {[%emt 0:00:30]} Rb2 {[%emt 0:01:30]} 44. Re5+ {[%emt 0:02:30]} Kf6 {[%emt 0:00:30]} 45. Re4 {[%emt 0:01:30]} h5 {[%emt 0:02:30]} 46. Bc8 $18 {[%emt 0:07:30]} Rc2 {[%emt 0:00:30]} 47. Bd7 {[%emt 0:00:30]} Rd2 {[%emt 0:04:30]} 48. Bh3 {[%emt 0:07:53]} Rb2 {[%emt 0:01:30]} 49. Re6+ {[%emt 0:05:56]} Kf7 {[%emt 0:00:30]} 50. Rxe3 {[%emt 0:02:12]} Rxb4 {[%emt 0:00:30]} 51. Re4 {[%emt 0:00:23]} Rb5 {[%emt 0:02:13]} 52. Kg2 {[%emt 0:01:04]} a5 {[%emt 0:01:07]} 53. Kg3 {[%emt 0:01:02]} Rb1 {[%emt 0:01:26]} 54. Re5 {[%emt 0:04:52]} Ra1 {[%emt 0:03:43]} 55. f5 {[%emt 0:02:27]} g5 {[%emt 0:03:18]} 56. Rb5 {[%emt 0:00:08]} Ra3 {[%emt 0:00:26]} 57. Rb7+ {[%emt 0:00:30]} Kf6 {[%emt 0:01:00]} 58. Rb6+ {[%emt 0:00:04]} Kf7 {[%emt 0:00:57]} 59. Rh6 {[%emt 0:00:06]} g4 {[%emt 0:00:54]} 60. Bg2 {[%emt 0:00:00]} gxf3 {[%emt 0:01:35]} 61. Bxf3 {[%emt 0:00:12]} a4 {[%emt 0:00:30]} 62. Rxh5 {[%emt 0:00:30]} Ra1 {[%emt 0:00:30]} 63. Kf4 {[%emt 0:01:36]} a3 {[%emt 0:00:00]} 64. Bd5+ {[%emt 0:01:15]} Kg7 {[%emt 0:01:05]} 65. Rh2 {[%emt 0:00:44]} Rf1+ {[%emt 0:00:13]} 66. Ke5 {[%emt 0:00:32]} Re1+ {[%emt 0:00:30]} 67. Be4 {[%emt 0:00:34]} Ra1 {[%emt 0:00:15]} 68. f6+ {[%emt 0:00:11]} Kf7 {[%emt 0:00:30]} 69. Rh7+ {[%emt 0:00:12]} Kg8 {[%emt 0:00:14]} 70. f7+ {[%emt 0:01:10]} Kf8 {[%emt 0:00:30]} 71. Ke6 {[%emt 0:00:00]} Rf1 {[%emt 0:00:00]} 72. Rh8+ {[%emt 0:00:20]} Kg7 {[%emt 0:00:00]} 73. Rg8+ {[%emt 0:00:00]} 1-0

[Event "World Junior U20 Open 2018"]
[Site "Gebze"]
[Date "2018.09.14"]
[Round "10.80"]
[White "Nurgaliyev, Sauat"]
[Black "Beukema, Christiaan"]
[Result "1-0"]
[ECO "C45"]
[WhiteElo "1685"]
[BlackElo "1904"]
[Annotator "NA"]
[PlyCount "61"]
[EventDate "2018.09.05"]
[EventType "swiss"]
[EventCountry "TUR"]
[SourceTitle "playchess.com"]
[Source "ChessBase"]
[SourceQuality "1"]
[TimeControl "40/5400+30:1800+30"]

1. e4 {[%emt 0:00:30]} e5 {[%emt 0:02:30]} 2. Nf3 {[%emt 0:00:00]} Nc6 {[%emt 0:00:30]} 3. d4 {[%emt 0:00:00]} exd4 {[%emt 0:00:00]} 4. Nxd4 {[%emt 0:00:30]} Bb4+ {[%emt 0:00:00]} 5. c3 {[%emt 0:00:30]} Bc5 {[%emt 0:00:30]} 6. Be3 {[%emt 0:00:00]} Bb6 {[%emt 0:00:00]} 7. Qg4 {[%emt 0:00:00]} Qf6 {[%emt 0:06:00]} 8. Qg3 {[%emt 0:01:30]} d6 {[%emt 0:03:30]} 9. Nb5 {[%emt 0:05:30]} Ba5 {[%emt 0:03:30]} 10. Nd2 {[%emt 0:03:30]} a6 {[%emt 0:00:30]} 11. Nd4 {[%emt 0:02:30]} Bb6 {[%emt 0:06:30]} 12. Nxc6 {[%emt 0:04:30]} Bxe3 {[%emt 0:01:30]} 13. Qxe3 {[%emt 0:01:30]} bxc6 {[%emt 0:00:00]} 14. Bd3 $14 {[%emt 0:00:30]} Ne7 {[%emt 0:04:00]} 15. O-O {[%emt 0:03:30]} O-O {[%emt 0:01:30]} 16. f4 {[%emt 0:01:30]} Qh6 {[%emt 0:05:30]} 17. h3 {[%emt 0:14:30]} Re8 {[%emt 0:06:30]} 18. Qf2 {[%emt 0:08:30]} Ng6 {[%emt 0:04:30]} 19. Nb3 {[%emt 0:06:30]} c5 {[%emt 0:01:30]} 20. Rae1 {[%emt 0:03:30]} Be6 {[%emt 0:03:30]} 21. f5 {[%emt 0:02:30]} Ne5 {[%emt 0:08:30]} 22. fxe6 {[%emt 0:00:30]} Rxe6 {[%emt 0:00:30]} 23. Bc4 {[%emt 0:05:30]} Rf6 {[%emt 0:01:30]} 24. Qe2 {[%emt 0:00:00]} Rg6 {[%emt 0:00:30]} 25. Kh2 {[%emt 0:06:00]} Ng4+ {[%emt 0:03:30]} 26. Kh1 {[%emt 0:01:30]} Ne5 {[%emt 0:00:30]} 27. Rf5 {[%emt 0:08:30]} Rg3 {[%emt 0:02:30]} 28. Na5 {[%emt 0:06:47]} Rf8 {[%emt 0:03:30]} 29. Qf2 {[%emt 0:05:50]} Qh4 {[%emt 0:01:30]} 30. Re3 {[%emt 0:03:39]} g6 {[%emt 0:03:30]} 31. Qxg3 {[%emt 0:01:01]} 1-0

[Event "World Junior U20 Open 2018"]
[Site "Gebze"]
[Date "2018.09.14"]
[Round "10.81"]
[White "Helander, Benjamin"]
[Black "Fleri, Matthew"]
[Result "1/2-1/2"]
[ECO "B86"]
[WhiteElo "1994"]
[BlackElo "1625"]
[Annotator "NA"]
[PlyCount "82"]
[EventDate "2018.09.05"]
[EventType "swiss"]
[EventCountry "TUR"]
[SourceTitle "playchess.com"]
[Source "ChessBase"]
[SourceQuality "1"]
[TimeControl "40/5400+30:1800+30"]

1. e4 {[%emt 0:00:30]} c5 {[%emt 0:00:30]} 2. Nf3 {[%emt 0:00:30]} d6 {[%emt 0:00:00]} 3. d4 {[%emt 0:00:00]} cxd4 {[%emt 0:00:00]} 4. Nxd4 {[%emt 0:00:00]} Nf6 {[%emt 0:00:30]} 5. Nc3 {[%emt 0:00:00] LiveBook: 99290 Games} a6 {[%emt 0:00:00]} 6. Bc4 {[%emt 0:00:00]} e6 {[%emt 0:00:00]} 7. O-O {[%emt 0:00:00]} Be7 {[%emt 0:00:00]} 8. Qf3 {[%emt 0:02:00] B86: Sizilianisch (Sosin-Angriff)} (8. Bb3 O-O 9. f4 b5 10. f5 e5 11. Nde2 Bb7 12. Bg5 Nbd7 13. Ng3 Rc8 14. Bxf6 Nxf6 15. Nh5 Rxc3 16. Nxf6+ Bxf6 17. bxc3 Bxe4 18. Bd5 Qb6+ 19. Kh1 Bxd5 20. Qxd5 Rc8 {1-0 (48) Kasimdzhanov,R (2704)-Grischuk,A (2774) Berlin 2015}) 8... O-O {[%emt 0:05:00]} 9. a4 {[%emt 0:02:30]} Nc6 {[%emt 0:10:30]} 10. Nxc6 {[%emt 0:03:30]} bxc6 {[%emt 0:00:30]} 11. e5 $146 {[%emt 0:00:30]} ({Vorgänger:} 11. Be2 Rb8 12. b3 a5 13. Qg3 e5 14. h3 Ne8 15. f4 Bh4 16. Qd3 Bf6 17. f5 Bg5 18. Ba3 Rb7 19. Kh1 Rd7 20. Rad1 Bf4 21. g3 Bh6 22. Kh2 Qb6 {½-½ (22) Pachnicke,H (1662)-Stevens,M (1445) GER email 2011}) 11... dxe5 {[%emt 0:09:30]} 12. Qxc6 {[%emt 0:00:30]} Bd7 {[%emt 0:01:30]} 13. Qf3 {[%emt 0:01:30]} Qc7 {[%emt 0:03:30]} 14. Qe2 $15 {[%emt 0:02:30]} Bc8 {[%emt 0:10:30]} 15. Be3 {[%emt 0:18:30]} Bb7 {[%emt 0:04:30]} 16. Rfd1 {[%emt 0:04:30]} Bc5 {[%emt 0:03:30]} 17. Bxc5 {[%emt 0:02:30]} Qxc5 {[%emt 0:02:30]} 18. b3 {[%emt 0:02:30]} Qc6 {[%emt 0:09:30]} 19. f3 {[%emt 0:02:30]} Qc7 {[%emt 0:02:30]} 20. Re1 {[%emt 0:01:30]} Bd5 {[%emt 0:07:30]} 21. Bxd5 {[%emt 0:10:30]} Nxd5 {[%emt 0:00:00]} 22. Nxd5 {[%emt 0:00:00]} exd5 {[%emt 0:00:00]} 23. Qxe5 {[%emt 0:02:00]} Qxc2 {[%emt 0:00:30]} 24. Qxd5 {[%emt 0:00:30]} Rad8 {[%emt 0:01:30]} 25. Qc4 {[%emt 0:03:30]} Qg6 {[%emt 0:02:30]} 26. Rad1 {[%emt 0:05:30]} h6 {[%emt 0:02:30]} 27. a5 {[%emt 0:09:30]} Rc8 {[%emt 0:01:30]} 28. Qe4 {[%emt 0:02:30]} Qf6 {[%emt 0:01:30]} 29. Qe5 {[%emt 0:00:30]} Qc6 {[%emt 0:05:04]} 30. Qd6 {[%emt 0:03:30]} Qb5 {[%emt 0:02:14]} 31. b4 {[%emt 0:03:20]} Rcd8 {[%emt 0:00:38]} 32. Qb6 {[%emt 0:00:27]} Rxd1 {[%emt 0:01:40]} 33. Rxd1 {[%emt 0:00:33]} Qe2 {[%emt 0:00:42]} 34. Qd4 {[%emt 0:03:22]} Rc8 {[%emt 0:00:22]} 35. h3 {[%emt 0:01:36]} g6 {[%emt 0:01:52]} 36. Qd3 {[%emt 0:00:50]} Qe6 {[%emt 0:00:29]} 37. Qd7 {[%emt 0:01:39]} Qe3+ {[%emt 0:00:23]} 38. Kh1 {[%emt 0:00:51]} Rc2 {[%emt 0:00:28]} 39. Qd8+ {[%emt 0:01:09]} Kh7 {[%emt 0:00:12]} 40. Qd5 {[%emt 0:00:00]} Qf4 {[%emt 0:00:00]} 41. Qb7 {[%emt 0:08:43]} Rc1 {[%emt 0:02:26]} 1/2-1/2